bitfinex/quotes_ETHUSD_20240604
["timestamp","ask_amount","ask_price","bid_price","bid_amount"]
[1717538820065,3.19067799,3811.4,3811.3,0.1266297]
[1717538820724,2.6237,3811.4,3811.3,0.1266297]
[1717538820866,3.7906844,3811.4,3811.3,0.1266297]
[1717538821064,4.5726844,3811.4,3811.3,0.1266297]
[1717538822119,0.5670394,3811.4,3811.3,0.1266297]
[1717538822400,2.62355,3811.7,3811.3,0.1266297]
[1717538822401,0.782,3811.5,3811.3,0.1266297]
[1717538822603,0.782,3811.5,3811.3,0.17318435]
[1717538823118,0.5670394,3811.6,3811.3,0.17318435]
[1717538823266,0.782,3811.6,3811.3,0.17318435]
[1717538823984,7.3,3811.8,3811.3,0.17318435]
[1717538824183,0.782,3811.7,3811.3,0.17318435]
[1717538824398,0.782,3811.7,3811.3,0.1266297]
[1717538824601,1.3489491,3811.7,3811.4,0.04663654]
[1717538824816,0.782,3811.5,3811.4,0.04663654]
[1717538825815,3.2377,3811.5,3811.4,0.04663654]
[1717538826041,5.17747201,3811.5,3811.4,0.04663654]
[1717538826440,5.17747201,3811.5,3811.3,0.1266297]
[1717538826742,0.5669491,3811.4,3811.3,0.1266297]
[1717538827339,0.5669491,3811.4,3811.3,0.17336022]
[1717538827690,0.5669491,3811.4,3811.3,0.1266297]
[1717538836422,0.782,3811.4,3811.3,0.1266297]
[1717538836623,0.782,3811.4,3811.3,0.17338815]
[1717538836810,2.62358,3811.6,3811.3,0.17338815]
[1717538837148,0.782,3811.4,3811.3,0.17338815]
[1717538838565,0.782,3811.6,3811.3,0.74968396]
[1717538838778,7.3,3811.8,3811.5,2.62363]
[1717538838938,8.082,3811.8,3811.3,0.74968396]
[1717538839270,0.782,3811.4,3811.3,0.70292551]
[1717538839769,0.782,3811.4,3811.3,0.74970752]
[1717538839924,0.782,3811.4,3811.3,0.17341171]
[1717538840571,0.56697272,3811.7,3811.3,0.17341171]
[1717538840731,0.782,3811.5,3811.3,0.17341171]
[1717538842026,0.56695592,3811.7,3811.3,0.17341171]
[1717538842462,0.782,3811.4,3811.3,0.17341171]
[1717538844873,0.56698318,3811.7,3811.3,0.17341171]
[1717538845061,0.782,3811.6,3811.3,0.17341171]
[1717538845830,0.782,3811.6,3811.3,0.20763669]
[1717538847881,0.782,3811.4,3811.3,0.20763669]
[1717538850173,1.34901153,3811.4,3811.3,0.20763669]
[1717538850338,1.99056168,3811.4,3811.3,0.16085468]
[1717538851142,4.46395015,3811.4,3811.3,0.16085468]
[1717538851340,8.03096168,3811.4,3811.3,0.16085468]
[1717538853985,15.90216168,3811.4,3811.3,0.16085468]
[1717538856401,15.35216168,3811.4,3811.3,0.16085468]
[1717538858069,14.78515015,3811.4,3811.3,0.16085468]
[1717538858270,14.57020379,3811.4,3811.3,0.16085468]
[1717538858444,15.35220379,3811.4,3811.3,0.16085468]
[1717538860800,12.86180379,3811.4,3811.3,0.16085468]
[1717538861089,12.86180379,3811.4,3811.3,0.1266297]
[1717538862051,12.22025364,3811.4,3811.3,0.1266297]
[1717538863255,8.43825364,3811.4,3811.3,0.1266297]
[1717538863508,9.22025364,3811.4,3811.3,0.1720046]
[1717538863709,8.6532,3811.4,3811.3,0.1720046]
[1717538870472,11.5355846,3811.4,3811.3,0.1266297]
[1717538870672,12.6632636,3811.4,3811.3,0.1266297]
[1717538875115,10.3478636,3811.4,3811.3,0.1266297]
[1717538875417,9.2201846,3811.4,3811.3,0.1266297]
[1717538878323,8.4381846,3811.4,3811.3,0.1266297]
[1717538878475,9.2201846,3811.4,3811.3,0.1720987]
[1717538879981,8.4381846,3811.4,3811.3,0.1720987]
[1717538880182,9.2201846,3811.4,3811.3,0.1720987]
[1717538882252,8.4381846,3811.4,3811.3,0.1720987]
[1717538882529,7.8712,3811.4,3811.3,0.1720987]
[1717538882892,8.6532,3811.4,3811.3,0.1720987]
[1717538884321,7.8712,3811.4,3811.3,0.1720987]
[1717538884635,8.6532,3811.4,3811.3,0.1720987]
[1717538884837,7.8712,3811.4,3811.3,0.1720987]
[1717538885204,7.8712,3811.4,3811.3,2.6515987]
[1717538885403,7.8712,3811.4,3811.3,2.6061297]
[1717538885645,7.8712,3811.4,3811.3,2.65152813]
[1717538886206,7.8712,3811.4,3811.3,3.24875794]
[1717538888243,7.8712,3811.4,3811.3,0.17202813]
[1717538888564,8.6532,3811.4,3811.3,0.17202813]
[1717538890149,7.8712,3811.4,3811.3,0.17202813]
[1717538891013,7.83697502,3811.4,3811.3,0.17202813]
[1717538892730,8.40395565,3811.4,3811.3,0.17202813]
[1717538894046,9.18595565,3811.4,3811.3,0.17202813]
[1717538894555,8.61897502,3811.4,3811.3,0.17202813]
[1717538896573,9.1859555,3811.4,3811.3,0.17202813]
[1717538898574,7.83697502,3811.4,3811.3,0.17202813]
[1717538898748,8.61897502,3811.4,3811.3,0.17202813]
[1717538900016,9.74323152,3811.4,3811.3,0.17202813]
[1717538900211,12.63710919,3811.4,3811.3,0.1266297]
[1717538905722,9.18595269,3811.4,3811.3,0.1266297]
[1717538906283,8.40395269,3811.4,3811.3,0.1266297]
[1717538906483,9.18595269,3811.4,3811.3,0.1266297]
[1717538907094,8.40395269,3811.4,3811.3,0.1266297]
[1717538907310,9.18595269,3811.4,3811.3,0.1266297]
[1717538916967,8.61897502,3811.4,3811.3,0.1266297]
[1717538917155,9.18597231,3811.4,3811.3,0.1266297]
[1717538917570,12.77332854,3811.4,3811.3,0.1266297]
[1717538918371,12.20633125,3811.4,3811.3,0.1266297]
[1717538918666,12.77335437,3811.4,3811.3,0.1266297]
[1717538925750,12.77336617,3811.4,3811.3,0.1266297]
[1717538930684,15.77336617,3811.4,3811.3,0.1266297]
[1717538931185,15.77340632,3811.4,3811.3,0.1266297]
[1717538932806,13.36700632,3811.4,3811.3,0.1266297]
[1717538932943,13.367003,3811.4,3811.3,0.1266297]
[1717538935450,12.18604677,3811.4,3811.3,0.1266297]
[1717538938996,12.18604856,3811.4,3811.3,0.1266297]
[1717538939494,14.53194856,3811.4,3811.3,0.1266297]
[1717538941004,13.74994856,3811.4,3811.3,0.1266297]
[1717538941152,14.53194856,3811.4,3811.3,0.1266297]
[1717538941356,16.50986442,3811.4,3811.3,0.1266297]
[1717538942183,15.72786442,3811.4,3811.3,0.1266297]
[1717538942563,16.50986442,3811.4,3811.3,0.1266297]
[1717538946500,14.16396442,3811.4,3811.3,0.1266297]
[1717538947960,13.59689088,3811.4,3811.3,0.1266297]
[1717538948199,14.16397137,3811.4,3811.3,0.1266297]
[1717538948709,13.59689088,3811.4,3811.3,0.1266297]
[1717538948906,14.16397126,3811.4,3811.3,0.1266297]
[1717538949264,12.1860554,3811.4,3811.3,0.1266297]
[1717538950611,12.1860434,3811.4,3811.3,0.1266297]
[1717538950817,14.8097434,3811.4,3811.3,0.1266297]
[1717538951370,17.4334434,3811.4,3811.3,0.1266297]
[1717538954095,14.0277434,3811.4,3811.3,0.1266297]
[1717538954423,14.8097434,3811.4,3811.3,0.1266297]
[1717538955133,14.24267502,3811.4,3811.3,0.1266297]
[1717538955419,14.80971059,3811.4,3811.3,0.1266297]
[1717538957543,14.8097211,3811.4,3811.3,0.1266297]
[1717538959455,14.0277211,3811.4,3811.3,0.1266297]
[1717538959628,14.8097211,3811.4,3811.3,0.1266297]
[1717538962662,19.0817211,3811.4,3811.3,0.1266297]
[1717538962823,20.4137211,3811.4,3811.3,0.1266297]
[1717538966463,12.1860211,3811.4,3811.3,0.1266297]
[1717538967762,11.4040211,3811.4,3811.3,0.1266297]
[1717538967947,12.1860211,3811.4,3811.3,0.1266297]
[1717538970080,11.4040211,3811.4,3811.3,0.1266297]
[1717538970267,12.1860211,3811.4,3811.3,0.1266297]
[1717538970463,11.4040211,3811.4,3811.3,0.1266297]
[1717538970658,12.1860211,3811.4,3811.3,0.1266297]
[1717538971956,13.66698821,3811.4,3811.3,0.1266297]
[1717538972675,14.21698821,3811.4,3811.3,0.1266297]
[1717538976033,12.1860211,3811.4,3811.3,0.1266297]
[1717538978405,11.61897502,3811.4,3811.3,0.1266297]
[1717538978706,12.18603735,3811.4,3811.3,0.1266297]
[1717538980101,12.18602014,3811.4,3811.3,0.1266297]
[1717538984379,12.18600968,3811.4,3811.3,0.1266297]
[1717538987198,12.1859943,3811.4,3811.3,0.1266297]
[1717538991001,11.61897502,3811.4,3811.3,2.5676297]
[1717538991703,11.61897502,3811.4,3811.3,2.61297799]
[1717538992867,11.61897502,3811.4,3811.3,0.1266297]
[1717538993267,12.18598891,3811.4,3811.3,0.1266297]
[1717538993579,11.61897502,3811.4,3811.3,0.1266297]
[1717539002931,12.18597578,3811.4,3811.3,0.1266297]
[1717539003232,8.40397578,3811.4,3811.3,2.81008267]
[1717539003434,8.61897502,3811.4,3811.3,2.81008267]
[1717539003731,8.61897502,3811.4,3811.3,2.85543096]
[1717539006224,8.61897502,3811.4,3811.3,0.17197799]
[1717539006404,8.61897502,3811.4,3811.3,2.55347799]
[1717539008440,7.3,3813.2,3811.7,2.62349]
[1717539008625,7.3,3813.2,3811.4,0.3250378]
[1717539008626,0.782,3813.0,3812.6,2.3418]
[1717539008825,2.62217,3813.7,3812.6,3.66306577]
[1717539008826,0.782,3812.9,3812.6,3.66306577]
[1717539009159,0.782,3812.9,3812.7,0.04449517]
[1717539009446,0.56682124,3813.6,3812.8,3.94397577]
[1717539009598,2.62188,3814.1,3812.8,3.94397577]
[1717539009599,0.782,3813.4,3812.8,3.94397577]
[1717539009799,0.782,3813.4,3812.9,0.04438231]
[1717539010035,0.782,3813.4,3813.0,1.32126577]
[1717539010333,2.2686,3814.5,3813.0,1.32126577]
[1717539010334,0.782,3813.6,3813.1,2.66678945]
[1717539010541,0.782,3813.6,3813.2,1.32126577]
[1717539010896,0.782,3813.6,3813.3,0.04374912]
[1717539011158,0.782,3813.6,3813.4,1.32126577]
[1717539011292,0.56665296,3814.4,3813.4,1.36495847]
[1717539011493,0.782,3813.6,3813.4,1.32126577]
[1717539011950,0.782,3813.6,3813.5,0.04309295]
[1717539012099,0.782,3813.7,3813.5,0.04309295]
[1717539014213,0.782,3813.7,3813.1,2.62252]
[1717539014409,0.56667136,3814.7,3813.6,0.0414919]
[1717539014615,0.56667136,3814.7,3813.1,2.62252]
[1717539014616,0.782,3813.7,3813.1,2.62252]
[1717539014808,0.782,3813.2,3813.1,2.62252]
[1717539021664,0.782,3813.2,3813.1,3.94378577]
[1717539023836,0.782,3813.3,3813.2,2.4873]
[1717539024141,0.782,3813.3,3813.2,3.80856577]
[1717539025565,0.782,3813.3,3813.2,3.85036673]
[1717539027680,0.782,3813.3,3813.2,4.4976554]
[1717539028381,0.782,3813.3,3813.2,3.85036673]
[1717539029445,7.3,3814.1,3813.2,3.85036673]
[1717539029446,7.3,3814.1,3813.6,2.62215]
[1717539029782,0.782,3813.8,3813.6,3.94341577]
[1717539034661,3.0,3814.0,3813.6,3.94341577]
[1717539034989,0.782,3813.8,3813.6,3.94341577]
[1717539035196,3.0,3814.0,3813.8,2.62205]
[1717539035406,0.782,3813.9,3813.8,3.94331577]
[1717539037340,0.782,3813.9,3812.8,3.40471]
[1717539037493,2.62226,3813.5,3812.8,1.32126577]
[1717539037692,0.782,3812.9,3812.8,1.32126577]
[1717539039909,2.62243,3813.3,3812.8,1.32126577]
[1717539041146,2.62256,3813.1,3812.4,2.62299]
[1717539041437,2.62256,3813.1,3812.5,1.32126577]
[1717539041637,2.62256,3813.1,3812.5,1.75376054]
[1717539045044,2.62207,3813.8,3812.5,0.03806919]
[1717539045045,2.62283,3812.7,3812.5,0.03806919]
[1717539045256,1.883,3812.6,3812.5,0.03806919]
[1717539045453,1.883,3812.6,3811.9,2.62331]
[1717539045618,2.62283,3812.7,3812.0,1.32126577]
[1717539045815,2.62283,3812.7,3812.1,0.39445758]
[1717539046007,2.62283,3812.7,3812.2,1.32126577]
[1717539046208,2.62283,3812.7,3812.2,1.35976464]
[1717539054763,4.50564,3813.0,3812.3,2.62308]
[1717539054959,7.3,3813.2,3812.4,1.71955023]
[1717539055125,3.0,3813.1,3812.4,1.71955023]
[1717539055327,5.62257,3813.1,3812.4,1.71955023]
[1717539057965,2.62269,3812.9,3812.4,1.71955023]
[1717539061461,2.62283,3812.7,3812.4,1.32126577]
[1717539061969,2.62283,3812.7,3812.5,0.03852737]
[1717539062174,0.785,3812.6,3812.5,0.03852737]
[1717539062358,2.62283,3812.7,3812.5,0.03852737]
[1717539062673,0.785,3812.6,3812.5,0.03852737]
[1717539066454,2.62297,3812.5,3811.7,5.07965]
[1717539066762,0.785,3812.2,3811.8,1.86815331]
[1717539072837,0.785,3812.4,3811.8,1.86815331]
[1717539073679,0.785,3812.4,3811.9,2.62334]
[1717539073876,0.785,3812.4,3812.0,1.32126577]
[1717539074176,0.785,3812.4,3812.0,1.36013529]
[1717539074375,7.3,3812.7,3812.1,0.44914403]
[1717539074576,7.3,3812.7,3812.5,3.40792]
[1717539074781,7.3,3812.7,3812.6,1.32126577]
[1717539075077,7.3,3812.7,3812.6,1.35973932]
[1717539078195,0.785,3813.1,3812.7,2.6228]
[1717539078367,0.785,3813.1,3812.8,1.32126577]
[1717539078575,0.785,3813.1,3812.9,0.03830424]
[1717539078791,0.785,3813.3,3812.9,0.03830424]
[1717539078962,0.785,3813.3,3812.8,1.7195197]
[1717539079391,0.785,3813.3,3812.8,0.39825393]
[1717539079592,0.785,3813.3,3812.7,2.6228]
[1717539079969,0.785,3813.1,3812.7,2.6228]
[1717539081102,0.785,3813.1,3812.4,2.62297]
[1717539081396,0.785,3813.1,3812.5,1.35959006]
[1717539081597,0.785,3813.1,3812.6,2.62287]
[1717539081778,0.785,3813.1,3812.7,0.39824601]
[1717539081962,2.62244,3813.3,3812.7,0.43645742]
[1717539082173,3.40744,3813.3,3812.7,0.39824601]
[1717539082799,7.3,3813.4,3812.8,3.94399577]
[1717539083100,0.785,3813.3,3812.8,3.94399577]
[1717539083297,0.785,3813.3,3812.9,0.67003418]
[1717539083501,0.785,3813.3,3812.9,1.99129995]
[1717539084480,0.785,3813.3,3813.0,0.03804211]
[1717539084986,5.06513,3813.6,3813.0,0.03804211]
[1717539085192,0.785,3813.3,3812.9,1.99129995]
[1717539085411,0.785,3813.3,3813.1,0.03798569]
[1717539085688,0.785,3813.3,3813.0,0.53926971]
[1717539085889,0.785,3813.3,3813.2,0.03792927]
[1717539086078,5.06513,3813.6,3813.1,0.03798569]
[1717539086277,0.785,3813.3,3813.0,3.1238076]
[1717539086467,0.785,3813.3,3813.2,0.03792927]
[1717539086668,0.785,3813.3,3813.1,0.03798569]
[1717539086996,0.785,3813.3,3813.0,2.62258]
[1717539087179,0.785,3813.3,3813.2,0.03792927]
[1717539087386,0.785,3813.3,3813.0,2.62258]
[1717539087582,0.785,3813.3,3813.0,3.083968]
[1717539087934,0.785,3813.3,3813.1,0.03798569]
[1717539090719,0.785,3813.3,3812.9,1.99129995]
[1717539090924,5.06513,3813.6,3813.2,0.03792667]
[1717539091128,0.785,3813.3,3812.9,1.32126577]
[1717539091287,0.785,3813.1,3812.9,1.32126577]
[1717539091487,0.785,3813.1,3813.0,0.03803951]
[1717539092504,0.785,3813.5,3813.0,0.03803951]
[1717539092908,0.785,3813.5,3813.0,1.32126577]
[1717539093816,0.785,3813.3,3813.0,1.32126577]
[1717539094015,0.785,3813.3,3813.1,0.03787114]
[1717539098277,2.62223,3813.6,3813.1,0.03787114]
[1717539098575,0.785,3813.4,3813.0,1.7786786]
[1717539102855,2.62223,3813.6,3813.0,1.7786786]
[1717539103164,0.785,3813.4,3813.0,1.7786786]
[1717539103467,0.785,3813.4,3813.1,0.50315412]
[1717539108280,0.785,3813.4,3813.2,0.03770542]
[1717539108483,0.785,3813.4,3813.1,0.50315412]
[1717539108687,7.3,3813.8,3813.3,0.037649]
[1717539108895,7.3,3813.8,3813.2,2.461]
[1717539108896,0.785,3813.4,3813.2,2.461]
[1717539109102,0.785,3813.4,3813.3,0.69079399]
[1717539109266,0.785,3813.4,3813.3,0.72831545]
[1717539112892,0.785,3813.4,3813.3,0.03752146]
[1717539113043,0.785,3813.4,3813.1,4.44693989]
[1717539113243,0.785,3813.4,3813.3,0.03751626]
[1717539113442,0.785,3813.4,3813.1,4.44693989]
[1717539113685,0.785,3813.4,3813.3,0.03751626]
[1717539113850,0.785,3813.4,3813.1,4.44693989]
[1717539114062,0.785,3813.4,3813.3,0.03751626]
[1717539114299,0.785,3813.4,3813.1,4.44693989]
[1717539114469,0.785,3813.4,3813.3,0.03751626]
[1717539114792,0.785,3813.4,3813.1,4.44693989]
[1717539115001,0.785,3813.4,3813.3,0.03751626]
[1717539115486,0.785,3813.4,3813.1,4.44693989]
[1717539115808,0.785,3813.4,3813.3,0.03751626]
[1717539115959,0.785,3813.4,3813.2,0.03757268]
[1717539116163,0.785,3813.4,3813.1,4.44693989]
[1717539116671,0.785,3813.4,3813.2,0.03757268]
[1717539116876,0.785,3813.4,3813.1,4.44693989]
[1717539117197,0.785,3813.4,3813.3,0.03751626]
[1717539117404,0.785,3813.4,3813.2,0.03757268]
[1717539117701,0.785,3813.4,3813.3,0.03751626]
[1717539117905,0.785,3813.4,3813.1,4.44693989]
[1717539118196,0.785,3813.4,3813.3,0.03751626]
[1717539118404,0.785,3813.4,3813.2,0.03757268]
[1717539118610,0.785,3813.4,3813.1,4.44693989]
[1717539118899,0.785,3813.4,3813.2,0.03757268]
[1717539119103,0.785,3813.4,3813.1,4.44693989]
[1717539119307,0.785,3813.4,3813.3,0.03751626]
[1717539119463,0.785,3813.4,3813.1,4.44693989]
[1717539119657,0.785,3813.4,3813.3,0.03751626]
[1717539119900,0.785,3813.4,3813.1,4.44693989]
[1717539120101,0.785,3813.4,3813.3,0.03751626]
[1717539120309,0.785,3813.4,3813.1,4.44693989]
[1717539120462,0.785,3813.4,3813.3,0.03751626]
[1717539120663,0.785,3813.4,3813.1,4.44693989]
[1717539120864,0.785,3813.4,3813.3,0.03751626]
[1717539121106,0.785,3813.4,3813.1,4.44693989]
[1717539121304,0.785,3813.4,3813.3,0.03751626]
[1717539121514,0.785,3813.4,3813.1,4.44693989]
[1717539121678,0.785,3813.4,3813.3,0.03751626]
[1717539121864,0.785,3813.4,3813.1,4.44693989]
[1717539122063,0.785,3813.4,3813.3,0.03751626]
[1717539122414,0.56664722,3813.6,3813.1,4.44693989]
[1717539122710,0.785,3813.4,3813.2,0.03757268]
[1717539122891,0.785,3813.4,3813.1,4.44693989]
[1717539123207,0.785,3813.4,3813.3,0.03753706]
[1717539123363,0.785,3813.4,3813.2,0.03759348]
[1717539123564,0.785,3813.4,3813.3,0.03753706]
[1717539123902,0.785,3813.4,3813.1,3.94378577]
[1717539124066,0.785,3813.4,3813.3,0.03753706]
[1717539124258,0.785,3813.4,3813.1,3.94378577]
[1717539124457,0.785,3813.4,3813.3,0.03753706]
[1717539124763,0.785,3813.4,3813.2,0.65923206]
[1717539124993,0.785,3813.4,3813.3,0.03753706]
[1717539125404,0.785,3813.4,3813.2,0.62163858]
[1717539125708,0.785,3813.4,3813.3,0.03753706]
[1717539125906,0.785,3813.4,3813.2,0.62163858]
[1717539126080,0.785,3813.4,3813.3,0.03753706]
[1717539126281,0.785,3813.4,3813.2,0.62163858]
[1717539126496,0.785,3813.4,3813.3,0.03753706]
[1717539126691,0.785,3813.4,3813.2,0.62163858]
[1717539126895,0.785,3813.4,3813.3,0.03753706]
[1717539127097,0.785,3813.4,3813.2,0.62163858]
[1717539127407,0.785,3813.4,3813.3,0.03753706]
[1717539127808,2.62213,3813.7,3813.2,0.62163858]
[1717539127972,0.785,3813.5,3813.3,0.03753706]
[1717539128367,0.785,3813.5,3813.2,0.62163858]
[1717539128567,0.785,3813.5,3813.3,0.45654243]
[1717539128762,7.3,3813.8,3813.3,3.98119283]
[1717539128967,0.785,3813.5,3813.3,3.94365577]
[1717539139644,0.785,3813.5,3813.3,1.32126577]
[1717539142065,0.56663388,3813.7,3813.3,1.32126577]
[1717539142220,0.785,3813.5,3813.3,1.32126577]
[1717539142546,0.785,3813.5,3812.9,2.62263]
[1717539142754,0.785,3813.3,3812.9,3.94389577]
[1717539143067,0.785,3813.3,3813.0,0.03768293]
[1717539144518,2.4198,3813.4,3813.0,0.03768293]
[1717539144815,0.785,3813.5,3813.1,1.32126577]
[1717539145021,0.785,3813.5,3813.2,0.39815787]
[1717539145355,2.62219,3813.6,3813.2,0.39815787]
[1717539145565,0.785,3813.4,3813.2,0.39815787]
[1717539145947,0.785,3813.4,3813.3,0.03751366]
[1717539146362,0.785,3813.4,3813.2,0.39815787]
[1717539146561,0.785,3813.4,3813.3,0.03751366]
[1717539147059,0.785,3813.4,3813.3,0.213223]
[1717539149978,7.3,3813.8,3813.3,1.53448877]
[1717539150183,0.785,3813.5,3813.3,0.03752927]
[1717539150483,0.785,3813.5,3813.2,0.39815787]
[1717539150782,0.785,3813.5,3813.2,1.71942364]
[1717539151270,0.785,3813.5,3813.3,0.03752927]
[1717539151477,0.785,3813.5,3813.2,1.71942364]
[1717539151628,0.785,3813.5,3813.4,0.03747286]
[1717539151829,0.785,3813.5,3813.2,1.71942364]
[1717539152026,0.785,3813.5,3813.3,0.03752927]
[1717539152232,0.785,3813.5,3813.2,1.71942364]
[1717539152430,0.785,3813.5,3813.3,0.03752927]
[1717539152647,0.785,3813.5,3813.2,1.71942364]
[1717539152849,0.785,3813.5,3813.4,0.03747286]
[1717539153271,0.785,3813.5,3813.2,1.71942364]
[1717539153576,0.785,3813.5,3813.4,0.03747286]
[1717539153736,0.785,3813.5,3813.3,0.03752927]
[1717539153939,0.785,3813.5,3813.3,0.43794629]
[1717539155372,0.785,3813.5,3812.8,2.85310089]
[1717539155373,2.3487,3813.4,3812.9,2.62267]
[1717539155577,3.1337,3813.4,3813.0,1.32126577]
[1717539155784,3.1337,3813.4,3813.0,1.35896431]
[1717539162676,3.1337,3813.4,3813.1,2.62253]
[1717539162873,3.1337,3813.4,3813.1,2.66017731]
[1717539162874,0.785,3813.4,3813.1,2.66017731]
[1717539163080,0.785,3813.4,3813.2,0.39814431]
[1717539163286,0.785,3813.4,3813.2,0.4357352]
[1717539168592,0.785,3813.4,3813.2,0.03759089]
[1717539168974,0.785,3813.4,3813.0,3.94386577]
[1717539169304,7.3,3813.8,3813.0,6.43326577]
[1717539169444,0.785,3813.6,3813.1,0.03762908]
[1717539169644,0.785,3813.6,3813.2,1.32126577]
[1717539169886,0.785,3813.6,3813.3,0.03751624]
[1717539170085,0.785,3813.6,3813.2,1.32126577]
[1717539170298,0.785,3813.6,3813.2,3.94372577]
[1717539170481,0.785,3813.6,3813.3,0.03751624]
[1717539170690,0.785,3813.6,3813.2,3.94372577]
[1717539170904,0.785,3813.6,3813.4,0.03745982]
[1717539171228,0.785,3813.6,3813.2,3.94372577]
[1717539171571,0.785,3813.6,3813.3,0.03751624]
[1717539171877,0.785,3813.6,3813.2,3.94372577]
[1717539172083,0.785,3813.6,3813.4,0.03745982]
[1717539172264,0.785,3813.6,3813.2,3.94372577]
[1717539172708,0.785,3813.6,3813.3,0.03751624]
[1717539172911,0.785,3813.6,3813.2,3.94372577]
[1717539173122,0.785,3813.6,3813.4,0.03745982]
[1717539173273,0.785,3813.6,3813.2,3.94372577]
[1717539173472,0.785,3813.6,3813.5,0.03740341]
[1717539173772,0.785,3813.6,3813.2,3.94372577]
[1717539174112,0.785,3813.6,3813.3,0.03751624]
[1717539174317,0.785,3813.6,3813.2,3.94372577]
[1717539174521,0.785,3813.6,3813.4,0.03745982]
[1717539174816,0.785,3813.6,3813.2,4.39299844]
[1717539174999,0.56660976,3813.8,3813.5,0.03740341]
[1717539175204,0.785,3813.6,3813.2,4.39299844]
[1717539175572,0.785,3813.6,3813.3,0.03751624]
[1717539175967,0.785,3813.6,3813.2,4.39299844]
[1717539176169,0.785,3813.6,3813.4,0.03745982]
[1717539176421,0.785,3813.6,3813.3,0.03751624]
[1717539176713,0.785,3813.6,3813.4,0.03745982]
[1717539177005,0.785,3813.6,3813.2,3.94372577]
[1717539177212,0.785,3813.6,3813.5,0.03740341]
[1717539177362,0.785,3813.6,3813.2,3.94372577]
[1717539177670,0.785,3813.6,3813.3,0.44927267]
[1717539177867,0.785,3813.6,3813.4,0.03742079]
[1717539178062,0.785,3813.6,3813.3,0.44927267]
[1717539178269,0.785,3813.6,3813.4,0.03742079]
[1717539178466,0.785,3813.6,3813.3,0.44927267]
[1717539178662,0.785,3813.6,3813.4,0.03742079]
[1717539178913,0.785,3813.6,3813.3,0.44927267]
[1717539179214,0.785,3813.6,3813.5,0.03736437]
[1717539179366,0.785,3813.6,3813.4,0.03742079]
[1717539179567,0.785,3813.6,3813.3,0.44927267]
[1717539179768,0.785,3813.6,3813.5,0.03736437]
[1717539179969,0.785,3813.6,3813.3,0.44927267]
[1717539180181,0.785,3813.6,3813.5,0.03736437]
[1717539180799,0.785,3813.6,3813.3,0.44927267]
[1717539181110,0.785,3813.6,3813.4,0.03742079]
[1717539181342,0.785,3813.6,3813.3,0.44927267]
[1717539181544,0.785,3813.6,3813.5,0.03736437]
[1717539181677,0.785,3813.6,3813.2,3.94372577]
[1717539182018,0.785,3813.6,3813.3,0.43184978]
[1717539183374,0.785,3813.6,3813.3,0.43184978]
[1717539183773,0.785,3813.6,3813.3,0.0374772]
[1717539184085,0.785,3813.6,3813.4,0.03742079]
[1717539184289,0.785,3813.6,3813.2,3.94372577]
[1717539184512,0.785,3813.6,3813.5,0.03736437]
[1717539184713,0.785,3813.6,3813.2,3.94372577]
[1717539184909,0.785,3813.6,3813.5,0.03736437]
[1717539185117,0.785,3813.6,3813.2,3.94372577]
[1717539185323,0.785,3813.6,3813.5,0.03736437]
[1717539185473,0.785,3813.6,3813.2,3.94372577]
[1717539185818,0.785,3813.6,3813.3,0.0374772]
[1717539186184,0.785,3813.6,3813.2,3.94372577]
[1717539186390,0.785,3813.6,3813.4,0.03742079]
[1717539186593,0.785,3813.6,3813.3,0.0374772]
[1717539186818,0.785,3813.6,3813.5,0.03736437]
[1717539187313,0.785,3813.6,3813.2,3.94372577]
[1717539187519,0.785,3813.6,3813.5,0.03740081]
[1717539187817,0.785,3813.6,3813.2,3.94372577]
[1717539188017,0.785,3813.6,3813.5,0.03740081]
[1717539188190,0.5666117,3813.8,3813.2,3.94372577]
[1717539188387,0.785,3813.6,3813.5,0.03740081]
[1717539188590,0.785,3813.6,3813.2,3.94372577]
[1717539188788,0.785,3813.6,3813.5,0.03740081]
[1717539189026,0.785,3813.6,3813.2,3.94372577]
[1717539189328,0.56661155,3813.8,3813.2,1.32126577]
[1717539189621,0.785,3814.0,3813.3,0.03751364]
[1717539189775,0.785,3814.0,3813.4,1.7483138]
[1717539190220,0.785,3814.0,3813.5,0.03736958]
[1717539190394,0.785,3814.0,3813.6,1.32126577]
[1717539190595,0.785,3814.0,3813.6,3.94340577]
[1717539190919,0.56657687,3814.0,3813.7,0.03725676]
[1717539191125,1.35157687,3814.0,3813.8,1.32126577]
[1717539191307,0.785,3813.9,3813.8,1.35846612]
[1717539191482,7.3,3814.2,3813.8,3.94329577]
[1717539191678,0.785,3813.9,3813.8,3.94329577]
[1717539192420,0.785,3814.1,3813.8,3.94329577]
[1717539192584,0.785,3814.1,3813.9,0.43840668]
[1717539192784,0.785,3814.1,3813.9,1.7968164]
[1717539192985,0.785,3814.1,3813.9,1.75967245]
[1717539194117,0.785,3814.0,3813.9,1.75967245]
[1717539195194,7.3,3814.2,3813.9,1.75967245]
[1717539195400,2.365,3814.3,3813.9,1.75967245]
[1717539195401,0.785,3814.0,3813.9,1.75967245]
[1717539195581,2.365,3814.3,3813.9,1.75967245]
[1717539195781,0.56652843,3814.4,3814.0,0.48224735]
[1717539195981,0.785,3814.1,3814.0,0.48224735]
[1717539196383,7.3,3814.5,3814.0,0.48224735]
[1717539196622,0.785,3814.1,3814.0,0.48224735]
[1717539197206,0.785,3814.1,3814.0,1.80351312]
[1717539198196,7.3,3814.5,3814.1,2.62182]
[1717539198401,7.3,3814.5,3814.2,2.01335908]
[1717539198634,5.62134,3814.9,3814.4,2.4956]
[1717539198939,0.56648662,3814.8,3814.5,1.35778257]
[1717539199142,0.785,3814.7,3814.5,1.35778257]
[1717539199548,3.0,3815.0,3814.5,1.35778257]
[1717539199727,0.785,3814.8,3814.5,1.35778257]
[1717539200329,3.0,3815.1,3814.5,1.35778257]